Cogmind - Beta 15 @@@ ROGUE MODE // 2025.06.10 @ 17:39:02 Player: Candle Result: Destroyed by as-93937 with Assembled Heavy Rifle Performance ------------- Evolutions (1) 500 Regions Visited (5) 1000 Robots Destroyed (104) 520 Value Destroyed (2705) 2705 Prototype IDs (34) 680 Alien Tech Used (0) 0 Bonus (213) 213 TOTAL SCORE: 5618 Bonus ------- High Alert Combat Kills 60 Follower Combat Kills 27 Aligned with FarCom 300 Friendly Fire -174 Cogmind --------- Core Integrity 0/400 Matter 126/300 Energy 289/310 System Corruption 4% Temperature Cool (1) Movement Flying (780) Ox10 Location -9/Exiles Parts ------- > --- POWER (1) -------- Heavy Deuterium Engine > --- PROPULSION (3) --- Improved Treads Improved Treads Improved Flight Unit > --- UTILITY (3) ------ Improved Heat Sink High-capacity Storage Unit > --- WEAPON (2) ------- (None) > --- INVENTORY (20) --- Cooled Ion Engine Light Nuclear Core Improved Flight Unit Improved Flight Unit Experimental Sensor Array Improved Propulsion Shielding Trap Reconfigurator Improved EM Shotgun Improved EM Shotgun Improved EM Shotgun Firepult Flak Cannon Flak Cannon Mini Grenade Launcher Makeshift Spear Peak State ------------ > --- POWER ------------ Heavy Deuterium Engine > --- PROPULSION ------- Improved Treads Improved Treads Improved Treads > --- UTILITY ---------- Improved Heat Sink High-capacity Storage Unit > --- WEAPON ----------- Firepult > --- INVENTORY -------- Cooled Ion Engine Light Nuclear Core Improved Treads Improved Treads Improved Flight Unit Improved Flight Unit Improved Flight Unit Experimental Sensor Array Improved Propulsion Shielding Trap Reconfigurator Improved EM Shotgun Improved EM Shotgun Improved EM Shotgun Flak Cannon Flak Cannon Mini Grenade Launcher Makeshift Spear [Rating: 41] Favorites ----------- Power Cooled Ion Engine Engine Cooled Ion Engine Propulsion Improved Treads Treads Improved Treads Leg Carbon-fiber Leg Wheel Armored Wheel Flight Unit Improved Flight Unit Utility Huge Storage Unit Device Cooling System Storage Huge Storage Unit Protection Reflective Plating Weapon Improved EM Shotgun Energy Gun Improved EM Shotgun Energy Cannon Firepult Ballistic Gun Assault Rifle Ballistic Cannon Flak Cannon Special Weapon Mining Laser Build | -11 -10 -10 -9 -9 -9 ------- Run | Yrd Mat Min Mat Min Exi Slots Evolved 2 | . . . 2 . . Power . | . . . . . . Propulsion 1 | . . . 1 . . Utility 1 | . . . 1 . . Weapon . | . . . . . . Parts Attached 85 | 8 21 12 36 1 7 Power 9 | 1 2 2 3 . 1 Engine 9 | 1 2 2 3 . 1 Core . | . . . . . . Reactor . | . . . . . . Propulsion 25 | 2 4 2 14 . 3 Treads 16 | 2 2 . 10 . 2 Leg 1 | . . . 1 . . Wheel 7 | . 2 2 3 . . Hover . | . . . . . . Flight 1 | . . . . . 1 Utility 21 | 2 7 2 8 1 1 Device 7 | 1 2 . 2 1 1 Storage 5 | 1 3 . 1 . . Processor . | . . . . . . Hackware . | . . . . . . Protection 9 | . 2 2 5 . . Artifact . | . . . . . . Weapon 30 | 3 8 6 11 . 2 Energy Gun 21 | 2 5 6 8 . . Energy Cannon 1 | . . . . . 1 Ballistic Gun 4 | 1 2 . 1 . . Ballistic Cannon 3 | . . . 2 . 1 Launcher . | . . . . . . Special Weapon 1 | . 1 . . . . Impact Weapon . | . . . . . . Slashing Weapon . | . . . . . . Piercing Weapon . | . . . . . . Special Melee Weapon . | . . . . . . Unidentified Prototypes 6 | . 1 . 4 . 1 Corrupted Parts 1 | . . . 1 . . System Corruption 4 | . . . 4 . . Parts Lost 10 | . 2 . 3 . 5 Power . | . . . . . . Propulsion 7 | . 1 . 3 . 3 Utility 3 | . 1 . . . 2 Weapon . | . . . . . . Highest Loss Streak 5 | . 1 . 1 . 5 To Critical Strikes . | . . . . . . Average Backups 20 | 2 14 21 23 20 19 Power 3 | . 1 1 4 3 2 Propulsion 4 | 1 2 2 5 6 5 Utility 5 | . 4 9 6 5 4 Weapon 7 | . 6 8 7 6 6 Tool/Special . | . . . . . . Unused Backups 28 | . 5 . 11 . 12 Power 7 | . 2 . 3 . 2 Propulsion 6 | . 2 . 1 . 3 Utility 7 | . . . 3 . 4 Weapon 8 | . 1 . 4 . 3 Tool/Special . | . . . . . . Average Slot Usage (%) 99 | . 98 100 99 100 99 Engine 11 | . 14 14 11 11 11 Treads 19 | . 9 . 23 33 32 Wheel 11 | . 18 28 8 . . Device 8 | . 6 . 10 11 11 Storage 11 | . 14 14 11 11 11 Protection 10 | . 6 14 11 11 10 Energy Gun 17 | . 22 27 21 . . Ballistic Gun 1 | . 5 . . . . Ballistic Cannon 4 | . . . . 22 21 Peak Build Rating 41 | 9 17 24 31 33 41 Average Rating 23 | 5 13 18 27 30 28 On Entrance 17 | . 9 17 24 27 27 Naked Turns . | . . . . . . Heaviest Build 103 | 15 98 102 103 66 66 Greatest Support 69 | 40 40 24 69 69 69 Greatest Overweight (x) 9 | . 9 4 9 . . Average Overweight (x) 2 | . 2 3 3 . . Largest Inventory Capacity 25 | 8 25 25 25 20 20 Average Capacity 22 | 7 18 25 24 20 20 Most Carried 25 | 5 20 25 25 20 20 Average Carried 20 | 2 14 21 23 19 19 Final Capacity 25 | 8 25 25 20 20 20 Final Carried 25 | 5 19 25 20 20 16 Class Distribution -------------------- 99% | Mutant Dominant Class ---------------- Mutant | -10/Materials Mutant | -10/Mines Mutant | -9/Materials Mutant | -9/Mines Mutant | -9/Exiles Resources | -11 -10 -10 -9 -9 -9 ----------- Run | Yrd Mat Min Mat Min Exi Matter Collected 2200 | 294 629 295 675 215 92 Remotely . | . . . . . . Salvage Created 3990 | 177 740 590 2275 112 96 Parts 211 | 9 39 30 118 13 2 Haulers Intercepted 8 | . 2 . 6 . . Recyclers Shooed 2 | . 1 . 1 . . Parts Field Recycled . | . . . . . . Retrieved Matter . | . . . . . . Parts Self-Destructed . | . . . . . . Prevented . | . . . . . . Kills | -11 -10 -10 -9 -9 -9 ------- Run | Yrd Mat Min Mat Min Exi Combat Hostiles Destroyed 83 | . 18 16 38 6 5 Guns 58 | . 14 15 29 . . Cannons 10 | . . . . 6 4 AOE 14 | . 4 1 8 . 1 Classes Destroyed 11 | 2 4 2 2 . 1 Tunneler 8 | 4 1 . 2 1 . Hauler 8 | . 2 . 6 . . Recycler 2 | 1 . . 1 . . Operator 1 | . . . 1 . . Turret 1 | . . . . . 1 Watcher 8 | . 3 . 5 . . Swarmer 14 | . 6 2 2 4 . Grunt 49 | . 12 9 26 2 . Brawler 1 | . . . 1 . . Sentry 11 | . . 2 9 . . Assembled 8 | . . 3 . . 5 Best Kill Streak 9 | 2 5 4 9 2 8 Combat Bots Only 5 | . 4 4 4 2 5 Max Kills in Single Turn 3 | 1 3 1 3 1 2 Gunslinging . | . . . . . . Exploded 2 | . 2 1 2 . 1 Melee . | . . . . . . Uniques/NPCs Destroyed 3 | . . . . . 3 EX-DEC (-9/Exiles) EX-BIN (-9/Exiles) EX-HEX (-9/Exiles) Combat | -11 -10 -10 -9 -9 -9 -------- Run | Yrd Mat Min Mat Min Exi Hostile Shots Fired 430 | . 105 79 160 13 73 Missed 115 | . 40 18 44 4 9 Hits 315 | . 65 61 116 9 64 Melee 16 | . . 4 5 . 7 Projectile 299 | . 65 57 111 9 57 Critical Strikes 9 | . . 2 3 . 4 Part Disruptions 1 | . . 1 . . . Damage Taken 4654 | . 631 794 1578 75 1576 Core 566 | . 76 86 241 . 163 Absorbed by Shields . | . . . . . . Ignored by Resistances 64 | . . . 61 3 . Regen/Repaired (Parts) 11 | . . . 11 . . Core Remaining (%) 67 | 100 . 35 . . . Volleys Fired 279 | 18 79 52 108 8 14 Largest 2 | 2 2 2 2 2 2 Hottest 250 | 80 100 112 131 74 250 Shots Fired 537 | 28 157 91 216 19 26 Gun 481 | 28 156 82 215 . . Cannon 45 | . . . . 19 26 Launcher . | . . . . . . Special 11 | . 1 9 1 . . Kinetic 158 | 8 102 . 6 19 23 Thermal 149 | . 1 51 94 . 3 Explosive . | . . . . . . Electromagnetic 230 | 20 54 40 116 . . Robot Hit Streak 16 | 4 8 10 16 6 9 Robot Miss Streak 8 | 2 8 5 6 8 6 Penetration Max . | . . . . . . Secondary Targets 9 | . 5 2 2 . . Max Gunslinging Chain 1 | . 1 1 1 . . Shots Hit Robots 363 | 18 93 52 163 17 20 Core Hits 211 | 5 40 32 86 17 31 Critical Kills . | . . . . . . Critical Parts Destroyed . | . . . . . . Critical Strikes 15 | 1 . 2 12 . . Burn 14 | . . 2 12 . . Corrupt 1 | 1 . . . . . Melee Attacks . | . . . . . . Impact . | . . . . . . Slashing . | . . . . . . Piercing . | . . . . . . Sneak Attacks . | . . . . . . Combat Hostiles . | . . . . . . Follow-up Attacks . | . . . . . . Damage Inflicted 7191 | 264 1355 857 3913 197 605 Guns 5092 | 226 1061 809 2996 . . Cannons 572 | . . . . 197 375 Explosions 1501 | 38 294 48 891 . 230 Melee . | . . . . . . Ramming 26 | . . . 26 . . Kinetic 1244 | 72 626 . 53 197 296 Thermal 3168 | 38 294 323 2204 . 309 Explosive . | . . . . . . Electromagnetic 2753 | 154 435 534 1630 . . Impact . | . . . . . . Slashing . | . . . . . . Piercing . | . . . . . . Highest Corruption 4 | . . . 4 4 4 Average Corruption 4 | . . . 4 4 4 Corruption Purged . | . . . . . . Corruption Blocked . | . . . . . . Effects 150 | . . . 96 34 20 Message Errors 35 | . . . 20 10 5 Matter Fused 40 | . . . 27 6 7 Heat Flow Errors 17 | . . . 13 2 2 Energy Discharges 21 | . . . 13 4 4 Parts Fused 2 | . . . . 2 . Data Loss (minor) 13 | . . . 8 4 1 Data Loss (major) 9 | . . . 7 2 . Misfires 9 | . . . 5 3 1 Alerts 3 | . . . 2 1 . Weapon Failures 1 | . . . 1 . . Overload Shots . | . . . . . . Overflow Damage 22 | 13 . . 9 . . Projectiles . | . . . . . . Explosions 22 | 13 . . 9 . . Melee . | . . . . . . Knockbacks 13 | . . . 1 4 8 Impact 1 | . . . 1 . . Kinetic 12 | . . . . 4 8 Secondary . | . . . . . . Self-Inflicted Damage 114 | . . . 94 . 20 Shots 5 | . . . 4 . 1 Rammed 2 | . . . 1 1 . Targets Rammed 2 | . . . 1 1 . Kicked . | . . . . . . Crushed . | . . . . . . Highest Temperature 486 | 72 168 486 246 244 436 Average Temperature 109 | 29 42 167 59 69 197 Received Heat Transfer 1175 | . 210 353 600 12 . Effects 13 | . . 11 . 1 1 Shutdowns 1 | . . 1 . . . Energy Bleed 3 | . . 2 . 1 . Matter Decay 2 | . . 2 . . . Short Circuit 4 | . . 3 . . 1 Damage (major) 3 | . . 3 . . . Siege Activations . | . . . . . . Martial Activations . | . . . . . . Shielding Activations . | . . . . . . Robots Disrupted 1 | . . . 1 . . Combat Hostiles 1 | . . . 1 . . Robots Corrupted 1 | . . . 1 . . Combat Hostiles 1 | . . . 1 . . Parts Fried 8 | . . 2 6 . . Impact Corruptions . | . . . . . . Robots Melted 2 | . . . 1 . 1 Combat Hostiles . | . . . . . . Parts Melted 30 | . . 1 10 . 19 Heat Transferred 7422 | 50 300 901 4491 . 1680 Parts Sabotaged . | . . . . . . Parts Stolen . | . . . . . . Parts Stripped . | . . . . . . Power Chain Reactions 21 | 1 4 1 15 . . Alert | -11 -10 -10 -9 -9 -9 ------- Run | Yrd Mat Min Mat Min Exi Maximum Alert Level 2 | . . . 2 . . Low Security (%) 60 | 100 100 100 22 100 . Level 1 33 | . . . 64 . . Level 2 6 | . . . 12 . . Level 3 . | . . . . . . Level 4 . | . . . . . . Level 5 . | . . . . . . High Security . | . . . . . . Max Security . | . . . . . . Peak Influence 498 | 10 183 85 498 193 . Initial 193 | . . . . 193 . Average 157 | 1 50 22 270 43 . Influence Increases 2356 | 25 522 315 1279 215 . Destroy 0b10 Robot/C 1520 | . 360 260 760 140 . Destroy 0b10 Robot/NC 135 | 25 30 . 75 5 . Destroy Leader 342 | . 80 20 222 20 . Allied During Kill 5 | . . . . 5 . Successful Hack 93 | . 22 . 71 . . Disable Machine 90 | . . 15 75 . . Destroy Structure 96 | . 15 5 76 . . Lose Combat Pursuer 75 | . 15 15 . 45 . Influence Decreases 2356 | 25 522 315 781 713 . Entered New Map 305 | . . . . 305 . Time Decay 1811 | 25 502 315 601 368 . Lost Part 50 | . 20 . 30 . . Lost Ally 40 | . . . . 40 . Purge Threat 150 | . . . 150 . . Squads Dispatched 12 | . 3 . 9 . . Investigation 11 | . 3 . 8 . . Extermination . | . . . . . . Reinforcement 1 | . . . 1 . . Assault . | . . . . . . Garrison . | . . . . . . Intercept . | . . . . . . Searches Triggered . | . . . . . . Construction Impeded . | . . . . . . Haulers Reinforced . | . . . . . . Active Scanning Responses . | . . . . . . Cargo Convoy Interrupts . | . . . . . . Stealth | -11 -10 -10 -9 -9 -9 --------- Run | Yrd Mat Min Mat Min Exi Distress Signals 5 | . 2 . 2 1 . Communications Jammed . | . . . . . . Distress Signals . | . . . . . . Times Spotted 116 | . 30 17 54 8 7 Peak Tracking Total 13 | . 4 3 4 4 13 Tactical Retreats 5 | . 1 1 . 2 1 Traps | -11 -10 -10 -9 -9 -9 ------- Run | Yrd Mat Min Mat Min Exi Traps Triggered 4 | . 2 . 2 . . Indirectly . | . . . . . . Trap Hack Attempts . | . . . . . . Triggered . | . . . . . . Disarmed 6 | . 6 . . . . Reprogrammed . | . . . . . . Reused . | . . . . . . Traps Extracted . | . . . . . . Installed 1 | . . . . 1 . Triggered . | . . . . . . Machines | -11 -10 -10 -9 -9 -9 ---------- Run | Yrd Mat Min Mat Min Exi Machines Disabled 9 | . . 1 5 . 3 Max in Single Turn 2 | . . 1 2 . 2 Machines Repaired . | . . . . . . Machines Dismantled . | . . . . . . Machines Sabotaged . | . . . . . . Overloaded Fab Kills . | . . . . . . Hacking | -11 -10 -10 -9 -9 -9 --------- Run | Yrd Mat Min Mat Min Exi Machines Accessed 26 | . 8 1 15 1 1 Terminals 18 | . 7 . 10 1 . Fabricators . | . . . . . . Repair Stations 2 | . . . 2 . . Recycling Units 2 | . 1 . 1 . . Scanalyzers 2 | . . . 2 . . Garrison Access . | . . . . . . Total Hacks 79 | . 24 1 50 3 1 Successful 49 | . 16 1 30 1 1 Failed 30 | . 8 . 20 2 . Catastrophic 4 | . 1 . 2 1 . Database Lockouts . | . . . . . . Manual 31 | . 14 . 13 3 1 Terminals 55 | . 20 . 32 3 . Fabricators . | . . . . . . Repair Stations 7 | . . . 7 . . Recycling Units 6 | . 4 . 2 . . Scanalyzers 9 | . . . 9 . . Garrison Access . | . . . . . . Terminal Hacks 27 | . 10 1 14 1 1 Robot Analysis 5 | . 3 . 1 1 . Prototype ID Bank 2 | . . . 2 . . Open Door 1 | . . 1 . . . Branch Access Points 1 | . . . 1 . . Emergency Access Points 1 | . 1 . . . . Terminal Index 2 | . 1 . 1 . . Alert Level 1 | . 1 . . . . Unreport Threat 1 | . . . 1 . . Locate Traps 2 | . . . 2 . . Disarm Traps 1 | . 1 . . . . Transport Status 1 | . . . 1 . . Hauler Manifests 1 | . . . 1 . . Registered Components 2 | . 1 . 1 . . Registered Prototypes 1 | . . . 1 . . Zone Layout 4 | . 2 . 2 . . Proto ID Catalog 1 | . . . . . 1 Fabricator Hacks . | . . . . . . Repair Station Hacks 3 | . . . 3 . . Scan Component 2 | . . . 2 . . Repair 1 | . . . 1 . . Recycling Unit Hacks 1 | . 1 . . . . Retrieve Components 1 | . 1 . . . . Scanalyzer 8 | . . . 8 . . Insert Component 4 | . . . 4 . . Analyze 4 | . . . 4 . . Garrison Access Hacks . | . . . . . . Unauthorized Hacks 10 | . 5 . 5 . . Terminals 7 | . 3 . 4 . . Botnet 6 | . 3 . 3 . . Operators 1 | . . . 1 . . Fabricators . | . . . . . . Repair Stations . | . . . . . . Recycling Units 3 | . 2 . 1 . . Recyclers 1 | . 1 . . . . Mask 2 | . 1 . 1 . . Scanalyzers . | . . . . . . Garrison Access . | . . . . . . Data Cores Recovered . | . . . . . . Used . | . . . . . . Hacking Detections 23 | . 8 . 14 1 . Full Trace Events 9 | . 1 . 7 1 . Feedback Events . | . . . . . . Feedback Blocked . | . . . . . . Robot Schematics Acquired . | . . . . . . Robots Built . | . . . . . . Authchips . | . . . . . . Time . | . . . . . . Total Robot Build Rating . | . . . . . . Part Schematics Acquired 3 | . . . 3 . . Parts Built . | . . . . . . Authchips . | . . . . . . Time . | . . . . . . Total Part Build Rating . | . . . . . . Parts Repaired 1 | . . . 1 . . Time 136 | . . . 136 . . Parts Recycled . | . . . . . . Recycled Matter . | . . . . . . Retrieved Matter . | . . . . . . Retrieved Components 10 | . 10 . . . . Parts Scanalyzed 4 | . . . 4 . . Part Schematics Acquired 3 | . . . 3 . . Parts Damaged 1 | . . . 1 . . Bothacking | -11 -10 -10 -9 -9 -9 ------------ Run | Yrd Mat Min Mat Min Exi Used RIF Installer . | . . . . . . Robots Hacked . | . . . . . . Non-combat . | . . . . . . Combat . | . . . . . . Robot Hacks Applied . | . . . . . . Relay Couplers Released . | . . . . . . Fabnet Peak Effective % . | . . . . . . Robots Rewired . | . . . . . . Allies Hacked . | . . . . . . Hacks Repelled . | . . . . . . Allies | -11 -10 -10 -9 -9 -9 -------- Run | Yrd Mat Min Mat Min Exi Total Allies 5 | . . . . 5 . Largest Group 3 | . . . . 3 3 Highest-Rated Group 40 | . . . . 40 40 Highest-Rated Ally 31 | . . . . 31 16 Total Orders . | . . . . . . Ally Attacks 24 | . . . . 8 16 Total Damage 309 | . . . . 129 180 Kills 2 | . . . . 1 1 Allies Corrupted . | . . . . . . Allies Melted . | . . . . . . Intel | -11 -10 -10 -9 -9 -9 ------- Run | Yrd Mat Min Mat Min Exi Active Infowar (turns) 1287 | 11 391 . . 885 . Sensors 885 | . . . . 885 . Terrain 237 | 11 226 . . . . Seismic 165 | . 165 . . . . Robot Analysis Total 5 | . 3 . 1 1 . Derelict Logs Recovered 3 | . . 2 . 1 . Drone Launches . | . . . . . . Drone Recoveries . | . . . . . . Exploration | -11 -10 -10 -9 -9 -9 ------------- Run | Yrd Mat Min Mat Min Exi Turns Passed 10831 | 235 1869 1436 5135 1355 801 Spaces Moved 5323 | 110 1084 749 2193 725 462 Core 11 | 8 3 . . . . Treads 2620 | 102 217 . 1114 725 462 Legs . | . . . . . . Wheels 2692 | . 864 749 1079 . . Hover . | . . . . . . Flight . | . . . . . . Fastest Speed 50 | 50 105 135 116 160 160 Average Speed 168 | 152 137 149 194 160 160 Slowest Speed 500 | 160 500 150 480 160 160 Overloaded Moves . | . . . . . . Propulsion Burnouts . | . . . . . . Robots Hopped . | . . . . . . Potential Cave-ins . | . . . . . . Cave-ins Triggered . | . . . . . . Exploration Rate (%) 75 | 5 99 99 97 98 56 Regions Visited 5 Branch Regions 3 Pre-discovered Areas 3 | . . 2 . 1 . Known Exits Taken 1 | . . . 1 . . Unknown Exits Taken 4 | 1 1 1 . 1 . Scrap Searched 2 | . . 1 . 1 . Spaces Dug 2 | . 1 . 1 . . Terrain Destroyed 109 | 6 13 6 76 . 8 Melee . | . . . . . . Projectile 4 | . 1 2 1 . . AOE 105 | 6 12 4 75 . 8 Terrain Rammed . | . . . . . . Walls Destroyed . | . . . . . . Machines Disabled . | . . . . . . Actions | -11 -10 -10 -9 -9 -9 --------- Run | Yrd Mat Min Mat Min Exi Total 6679 | 146 1310 950 2867 904 502 Wait 794 | 6 83 127 408 164 6 Move 5318 | 109 1083 748 2192 724 462 Hop . | . . . . . . Pick Up 75 | 4 20 6 41 2 2 Fast Attach 27 | 8 5 1 13 . . Attach 14 | . 2 . 5 . 7 Detach 15 | 1 4 1 5 . 4 Swap 64 | . 17 13 30 2 2 Drop 90 | . 17 2 64 2 5 Fire 279 | 18 79 52 108 8 14 Melee . | . . . . . . Ram . | . . . . . . Kick . | . . . . . . Crush 2 | . . . 1 1 . Escape Stasis . | . . . . . . Rewire . | . . . . . . Trap 1 | . . . . 1 . Miscellaneous . | . . . . . . Route ------- -11/Scrapyard -10/Materials (discovered 6 exits: *Mat x3 / *Min x2 / [*Sub]) -10/Mines (discovered 3 exits: *Mat x2 / [*Sub]) -9/Materials (discovered 5 exits: [*Mat x3] / *Min x2) -9/Mines (discovered 3 exits: [*Mat x2] / *Exi) -9/Exiles History --------- Turn | Location | Event 15 | -11/Scrapyard | Discovered new exit (range 15) 236 | -11/Scrapyard | Entered Materials 303 | -10/Materials | Build established: Mutant 742 | -10/Materials | Discovered new exit (range 15) 961 | -10/Materials | Discovered new exit (range 15) 1213 | -10/Materials | Discovered new exit (range 14) 1491 | -10/Materials | Discovered new exit (range 16) 1828 | -10/Materials | Discovered new exit (range 10) 1865 | -10/Materials | Discovered new exit (range 14) 2105 | -10/Materials | Entered Mines 2126 | -10/Mines | Met a Derelict bent on vengeance 2153 | -10/Mines | Found a damaged Exp. Sensor Array with a note attached 2156 | -10/Mines | Found Prototype Device 2190 | -10/Mines | Excavation squad dispatched 2190 | -10/Mines | A large section of the Mines collapsed 2440 | -10/Mines | Excavation squad dispatched 2467 | -10/Mines | Discovered new exit (range 6) 2635 | -10/Mines | Core integrity fell below 50% 2731 | -10/Mines | Learned location of Zion (-6) 2731 | -10/Mines | Discovered new exit (range 7) 2794 | -10/Mines | Discovered new exit (range 15) 3048 | -10/Mines | Met a Derelict who couldn't figure out how to use a Trap Extractor 3339 | -10/Mines | A weapon hastily lodged in a ceiling crevice suddenly fell to the ground 3541 | -10/Mines | Entered Materials 3541 | -9/Materials | Evolved 2 slots: Propulsion x1, Utility x1 4054 | -9/Materials | Discovered new exit (range 7) 6248 | -9/Materials | Discovered new exit (range 7) 6428 | -9/Materials | Discovered new exit (range 14) 6438 | -9/Materials | Identified exit to Mines 6790 | -9/Materials | Core integrity fell below 50% 7065 | -9/Materials | Discovered new exit (range 15) 7878 | -9/Materials | Discovered new exit (range 12) 7995 | -9/Materials | Identified Exp. Sensor Array 8441 | -9/Materials | Repaired Broken Exp. Sensor Array 8676 | -9/Materials | Entered Mines 8683 | -9/Mines | Received a Rocket Launcher from a helpful Derelict 8880 | -9/Mines | Discovered new exit (range 6) 8894 | -9/Mines | Discovered new exit (range 4) 9008 | -9/Mines | Found DCF Scrap (10 items) 9190 | -9/Mines | Found a hidden stash of uninstalled traps 9341 | -9/Mines | Found a Scrap Suit stashed away for nefarious purposes 9402 | -9/Mines | Deemed a non-threat by the Exiles lab entrance 9402 | -9/Mines | Discovered new exit (range 5) 9701 | -9/Mines | Assisted by bots powering up and referring to "LRC-V3" 10031 | -9/Mines | Entered Exiles 10031 | -9/Exiles | Accompanied by 3 allies 10068 | -9/Exiles | Met 8R-AWN 10097 | -9/Exiles | Met EX-HEX 10147 | -9/Exiles | Met EX-BIN 10177 | -9/Exiles | Aligned with FarCom system 10179 | -9/Exiles | Given EX-Vault access code 10219 | -9/Exiles | Opened EX-Vault 10229 | -9/Exiles | Found Trap Reconfigurator 10263 | -9/Exiles | Warned to stay clear of 0b10 Research branches 10356 | -9/Exiles | Met EX-DEC 10672 | -9/Exiles | Found Firepult 10773 | -9/Exiles | Attacked by the Exiles 10775 | -9/Exiles | Allies destroyed EX-DEC 10794 | -9/Exiles | Destroyed EX-BIN 10796 | -9/Exiles | Destroyed EX-HEX 10810 | -9/Exiles | Core integrity fell below 20% 10819 | -9/Exiles | Lost 3 allies 10832 | -9/Exiles | Destroyed by as-93937 with Assembled Heavy Rifle Last Messages --------------- EX Chip 1 melted. EX Chip 2 melted. EX Chip 1 melted. EX Chip 2 melted. EX-HEX destroyed. Imp. Treads destroyed. DAS Turret heat spikes uncontrollably. DAS Turret critical meltdown. Imp. Treads broken. Overheating: Short circuit. as-05231 destroyed. as-23446 knocked back. as-23446 destroyed. Imp. Treads destroyed. System corrupted: Energy discharge (-44). as-27808 destroyed. Penetrated by HV Slug. as-49427 destroyed. HV Slug penetrates Machine. Penetrated by HV Slug. Map ----- +----------------------------------------------------+ | ???????????????????????????????" ""?????????## | | ???????????????????????????????" ?????????# | | ??????????????????????????????"" ??????????#" | | ??????????????????????????????"" ??????????#" | | ?????????????? "????????????? ""?????????#" | | ?????????????? ##????????????" "?????????##" | | ????????????? #???????????# #????????##"" | | ??????????????" #####????### ###?######"" | | ??????????????" """#####X# #"###""""""" | | ??????????????" """""" " "" | | ???????????????# "" """ " | | ????????????????# " " | | ??????????????????# | | ????????????????????# | | ?????????????????????# | | ?????????????????????## | | ??????????????????????##" | | ???????????????????????#""" """""" | | ??????????????????????##" ######"" | | ??????????????????????#"" ""##????### | | ?????????????????????##"""%% """##???????? | | ?????????????????????#""" % """##????????? | | ?????????????????????#"""%% ""#?????????? | | ?????????????????????#"" [=% ##?????????? | | ?????????????????????#""%%% #????????? | | ?????????????????????#""=@= ?????"" | | ?????????????????????## & % % ?? | | ??????????????????????#" ! % ?? | | ??????????????????????## ? | | ???????????????????????# " ? | | ???????????????????????#""" ""?? # | | ???????????????????????#"" ""#?????? | | ???????????????????????#" """???????? | | ???????????????????????#""" ??????????? | | ????????????????????????# ??????????? | | ??????????????????????????" "???????????? | | ???????????????????????????"" %????????????? | | ????????????????????????????""" ??????????????? | | ??????????????????????????????? ????????????????? | | ?????????????????????????????????????????????????? | | ?????????????????????????????????????????????????? | | ?????????????????????????????????????????????????? | | ?????????????????????????????????????????????????? | | ?????????????????????????????????????????????????? | | ?????????????????????????????????????????????????? | | ?????????????????????????????????????????????????? | | ?????????????????????????????????????????????????? | | ?????????????????????????????????????????????????? | | ?????????????????????????????????????????????????? | | ?????????????????????????????????????????????????? | +----------------------------------------------------+ Best States ------------- Heat Dissipation 50 Energy Generation 18 Energy Capacity 310 Matter Stores 300 Matter Capacity 300 Sight Range 16 Robot Scan Range 20 Terrain Scan Range 16 Terrain Scan Density 10 Armor Coverage 150 Resistance: TH 10 Resistance: EM 15 Evasion (%) 40 Recoil Reduction 3 Item Schematics ----------------- Imp. Flight Unit | -9/Materials | Scanalyzed Exp. Sensor Array | -9/Materials | Scanalyzed Imp. EM Shotgun | -9/Materials | Scanalyzed Robot Schematics ------------------ None Fabricated ------------ Nothing Repaired ---------- Exp. Sensor Array | 62% | -9/Materials | Broken Alien Tech Used ----------------- None Achievements -------------- None Challenges ------------ None Game ------ Seed HellfireBladeRipteeth Manual? 0 Play Time 01:11:22 Cumulative 136.5 hours Start 2025.06.10 @ 15:52:03 End 2025.06.10 @ 17:39:02 Sessions 1 Manual Loads 0 Difficulty Rogue Special Mode None Game No. 167 Rogue 167 Adventurer 0 Explorer 0 Win Type - Total 0 Types 0/0/0/0/0/0/0/0/0/0 Lore% 41 Gallery% 39 Achievement% 35 Wizard Run 0 Options --------- Layout 1 ASCII 0 Keyboard 0 Movement Mouse Keybinds 0 Fullscreen 1 Font 32/SmallcapsGlow Map View 50x40 Zoom Use 0% Tactical HUD 0 Map Filters NONE Filters NONE Steam 1 RUN: 47604990-71f6-4dcb-b711-738ba876a9c5